[Event "Betsys MČR v online bleskovém šachu 2021"]
[Site "Chess.com"]
[Date "2021.04.17"]
[Round "12"]
[White "mayerrs"]
[Black "phil3"]
[Result "1/2-1/2"]
[WhiteElo "1856"]
[BlackElo "2102"]
[TimeControl "180+1"]
[EndTime "11:00:27 PDT"]
[Termination "Remíza opakováním pozice"]

1. g3 {[%clk 0:03:00.9]} 1... d5 {[%clk 0:02:59.9]} 2. Bg2 {[%clk 0:03:01.8]}
2... c6 {[%clk 0:03:00.3]} 3. e3 {[%clk 0:03:02.2]} 3... Nf6 {[%clk 0:03:00.8]}
4. Ne2 {[%clk 0:03:02.6]} 4... Bf5 {[%clk 0:03:01.2]} 5. O-O {[%clk 0:03:03]}
5... e6 {[%clk 0:03:00.2]} 6. b3 {[%clk 0:03:03.6]} 6... h5 {[%clk 0:02:59.9]}
7. h4 {[%clk 0:03:02.6]} 7... a5 {[%clk 0:02:58]} 8. Bb2 {[%clk 0:03:02.1]} 8...
a4 {[%clk 0:02:57.3]} 9. d3 {[%clk 0:02:59.7]} 9... Nbd7 {[%clk 0:02:53.1]} 10.
Nd2 {[%clk 0:02:55.9]} 10... a3 {[%clk 0:02:41]} 11. Bc1 {[%clk 0:02:50.6]}
11... Nc5 {[%clk 0:02:39.6]} 12. d4 {[%clk 0:02:43.3]} 12... Ncd7 {[%clk
0:02:33.8]} 13. c4 {[%clk 0:02:43.5]} 13... Bd6 {[%clk 0:02:28]} 14. c5 {[%clk
0:02:43.4]} 14... Bc7 {[%clk 0:02:27.8]} 15. Re1 {[%clk 0:02:39.2]} 15... Qb8
{[%clk 0:02:26.7]} 16. b4 {[%clk 0:02:36.3]} 16... Ng4 {[%clk 0:02:08.9]} 17.
Nf1 {[%clk 0:02:32.8]} 17... b6 {[%clk 0:01:53.1]} 18. Qb3 {[%clk 0:02:21.8]}
18... bxc5 {[%clk 0:01:51.3]} 19. bxc5 {[%clk 0:02:22.7]} 19... Qxb3 {[%clk
0:01:50.2]} 20. axb3 {[%clk 0:02:23.6]} 20... Ngf6 {[%clk 0:01:38.3]} 21. Rxa3
{[%clk 0:02:22.9]} 21... Rxa3 {[%clk 0:01:37.6]} 22. Bxa3 {[%clk 0:02:23.8]}
22... Ke7 {[%clk 0:01:36.9]} 23. Ra1 {[%clk 0:02:19.2]} 23... Rb8 {[%clk
0:01:35.2]} 24. b4 {[%clk 0:02:19.3]} 24... Ra8 {[%clk 0:01:24.8]} 25. Bb2
{[%clk 0:02:18.2]} 25... Rb8 {[%clk 0:01:24]} 26. Bc3 {[%clk 0:02:16.8]} 26...
Ne4 {[%clk 0:01:22.6]} 27. Bxe4 {[%clk 0:02:15.2]} 27... Bxe4 {[%clk 0:01:22.5]}
28. Ra7 {[%clk 0:02:14.9]} 28... Kd8 {[%clk 0:01:19.5]} 29. Nd2 {[%clk
0:02:14.4]} 29... Bf5 {[%clk 0:01:08.7]} 30. f3 {[%clk 0:02:13.2]} 30... Bd3
{[%clk 0:01:04.9]} 31. Nf4 {[%clk 0:02:11.5]} 31... Bxf4 {[%clk 0:01:05]} 32.
gxf4 {[%clk 0:02:04]} 32... g6 {[%clk 0:00:52.5]} 33. Kf2 {[%clk 0:02:03.9]}
33... Kc8 {[%clk 0:00:51.3]} 34. e4 {[%clk 0:01:58]} 34... Rb7 {[%clk
0:00:47.4]} 35. Rxb7 {[%clk 0:01:51.7]} 35... Kxb7 {[%clk 0:00:47.2]} 36. Ke3
{[%clk 0:01:49.2]} 36... Bb5 {[%clk 0:00:43.8]} 37. f5 {[%clk 0:01:42.8]} 37...
Kc8 {[%clk 0:00:17.5]} 38. Kf4 {[%clk 0:01:41.6]} 38... exf5 {[%clk 0:00:14.7]}
39. exf5 {[%clk 0:01:41.3]} 39... Kd8 {[%clk 0:00:13.9]} 40. Kg5 {[%clk
0:01:35.1]} 40... Bd3 {[%clk 0:00:13.3]} 41. fxg6 {[%clk 0:01:29]} 41... fxg6
{[%clk 0:00:13.4]} 42. f4 {[%clk 0:01:28]} 42... Ke7 {[%clk 0:00:13.1]} 43. Nf3
{[%clk 0:01:28.2]} 43... Ke6 {[%clk 0:00:11.7]} 44. Ne5 {[%clk 0:01:22.7]} 44...
Nxe5 {[%clk 0:00:09.8]} 45. dxe5 {[%clk 0:01:23.6]} 45... Be4 {[%clk 0:00:07.9]}
46. Bd2 {[%clk 0:01:23.2]} 46... Bd3 {[%clk 0:00:07.8]} 47. Be3 {[%clk
0:01:23.5]} 47... Be4 {[%clk 0:00:07.4]} 48. Bd2 {[%clk 0:01:20.3]} 48... Bd3
{[%clk 0:00:07.8]} 49. Bc3 {[%clk 0:01:20.5]} 49... Be4 {[%clk 0:00:08.2]} 50.
Bb2 {[%clk 0:01:20.5]} 50... Bd3 {[%clk 0:00:08.6]} 51. Bc3 {[%clk 0:01:20.9]}
1/2-1/2

[Event "Betsys MČR v online bleskovém šachu 2021"]
[Site "Chess.com"]
[Date "2021.04.17"]
[Round "12"]
[White "Miky2610"]
[Black "honzasoucek"]
[Result "0-1"]
[WhiteElo "1803"]
[BlackElo "1651"]
[TimeControl "180+1"]
[EndTime "11:00:27 PDT"]
[Termination "Uživatel honzasoucek zvítězil matem"]

1. c4 {[%clk 0:03:00.9]} 1... c6 {[%clk 0:02:58.1]} 2. Nc3 {[%clk 0:03:00.6]}
2... Nf6 {[%clk 0:02:56.4]} 3. g3 {[%clk 0:02:59.9]} 3... d5 {[%clk 0:02:56.6]}
4. cxd5 {[%clk 0:02:59.4]} 4... cxd5 {[%clk 0:02:57.1]} 5. d4 {[%clk 0:02:58.9]}
5... Nc6 {[%clk 0:02:57.4]} 6. Bg2 {[%clk 0:02:57.6]} 6... Bf5 {[%clk
0:02:55.2]} 7. Bf4 {[%clk 0:02:54.8]} 7... e6 {[%clk 0:02:55.2]} 8. Nf3 {[%clk
0:02:51.8]} 8... a6 {[%clk 0:02:55]} 9. Ne5 {[%clk 0:02:50.5]} 9... Bd6 {[%clk
0:02:45.9]} 10. Nxc6 {[%clk 0:02:40.6]} 10... bxc6 {[%clk 0:02:45.1]} 11. Qd2
{[%clk 0:02:39.5]} 11... O-O {[%clk 0:02:40.2]} 12. O-O {[%clk 0:02:37.4]} 12...
Bxf4 {[%clk 0:02:36.2]} 13. Qxf4 {[%clk 0:02:36]} 13... Rb8 {[%clk 0:02:35.7]}
14. b3 {[%clk 0:02:32.8]} 14... Qa5 {[%clk 0:02:26.8]} 15. Na4 {[%clk
0:02:29.1]} 15... Nd7 {[%clk 0:02:19.1]} 16. Rfc1 {[%clk 0:02:21.4]} 16... Rfc8
{[%clk 0:02:16.2]} 17. Nc5 {[%clk 0:02:19.3]} 17... Nxc5 {[%clk 0:02:04.6]} 18.
Rxc5 {[%clk 0:02:13.1]} 18... Qb6 {[%clk 0:02:02.4]} 19. Rac1 {[%clk 0:02:11.2]}
19... a5 {[%clk 0:02:01.5]} 20. g4 {[%clk 0:02:06.3]} 20... Bg6 {[%clk
0:02:00.6]} 21. h4 {[%clk 0:02:04.6]} 21... h6 {[%clk 0:02:00]} 22. Qd6 {[%clk
0:01:56.8]} 22... a4 {[%clk 0:01:51.3]} 23. Rxc6 {[%clk 0:01:54]} 23... Rxc6
{[%clk 0:01:45.6]} 24. Rxc6 {[%clk 0:01:53.5]} 24... Qb5 {[%clk 0:01:36.2]} 25.
bxa4 {[%clk 0:01:38.8]} 25... Qb1+ {[%clk 0:01:35.5]} 26. Kh2 {[%clk 0:01:37.4]}
26... Rb2 {[%clk 0:01:35.2]} 27. Rc8+ {[%clk 0:01:32.8]} 27... Kh7 {[%clk
0:01:32.5]} 28. Qe7 {[%clk 0:01:26.9]} 28... Rxe2 {[%clk 0:01:23.9]} 29. Qf8
{[%clk 0:01:24.9]} 29... Be4 {[%clk 0:01:08.7]} 30. Qh8+ {[%clk 0:01:15.5]}
30... Kg6 {[%clk 0:01:07.9]} 31. Bxe4+ {[%clk 0:01:12.2]} 31... Qxe4 {[%clk
0:00:16.5]} 32. h5+ {[%clk 0:01:10.7]} 32... Kg5 {[%clk 0:00:16.2]} 33. Qd8+
{[%clk 0:01:09.6]} 33... f6 {[%clk 0:00:13.6]} 34. Qg8 {[%clk 0:00:41.6]} 34...
Rxf2+ {[%clk 0:00:12.8]} 35. Kg1 {[%clk 0:00:38.2]} 35... Qg2# {[%clk
0:00:13.7]} 0-1

[Event "Betsys MČR v online bleskovém šachu 2021"]
[Site "Chess.com"]
[Date "2021.04.17"]
[Round "12"]
[White "Petr_Zacek"]
[Black "EXTREME_STRATEGY007"]
[Result "0-1"]
[WhiteElo "1727"]
[BlackElo "1386"]
[TimeControl "180+1"]
[EndTime "11:00:27 PDT"]
[Termination "Uživatel EXTREME_STRATEGY007 zvítězil po vzdání soupeře"]

1. d4 {[%clk 0:03:00.9]} 1... Nf6 {[%clk 0:02:58.4]} 2. Nf3 {[%clk 0:03:00.4]}
2... d5 {[%clk 0:02:54.4]} 3. c4 {[%clk 0:02:59.6]} 3... c6 {[%clk 0:02:52.6]}
4. Nc3 {[%clk 0:02:59]} 4... Bf5 {[%clk 0:02:48.3]} 5. Bg5 {[%clk 0:02:50.5]}
5... e6 {[%clk 0:02:36.6]} 6. cxd5 {[%clk 0:02:47.7]} 6... cxd5 {[%clk
0:02:33.1]} 7. e3 {[%clk 0:02:43.2]} 7... Bb4 {[%clk 0:02:31.6]} 8. Qb3 {[%clk
0:02:34.9]} 8... Qb6 {[%clk 0:02:27.5]} 9. Bxf6 {[%clk 0:02:33.4]} 9... gxf6
{[%clk 0:02:25.7]} 10. a3 {[%clk 0:02:27.8]} 10... Bxc3+ {[%clk 0:02:24.2]} 11.
Qxc3 {[%clk 0:02:27.7]} 11... Nc6 {[%clk 0:02:21.1]} 12. Be2 {[%clk 0:02:26.4]}
12... Na5 {[%clk 0:02:09.8]} 13. b4 {[%clk 0:02:19.9]} 13... Nc6 {[%clk
0:02:04.9]} 14. Nh4 {[%clk 0:02:10.3]} 14... Bg6 {[%clk 0:02:02.6]} 15. Nxg6
{[%clk 0:02:09]} 15... fxg6 {[%clk 0:02:01.7]} 16. O-O {[%clk 0:02:06.9]} 16...
O-O {[%clk 0:01:56.5]} 17. f4 {[%clk 0:02:01.7]} 17... a5 {[%clk 0:01:49.5]} 18.
b5 {[%clk 0:01:58.3]} 18... Ne7 {[%clk 0:01:46.3]} 19. a4 {[%clk 0:01:57.6]}
19... Nf5 {[%clk 0:01:45.2]} 20. g4 {[%clk 0:01:48.3]} 20... Rac8 {[%clk
0:01:37.8]} 21. Qe1 {[%clk 0:01:45.8]} 21... Nxe3 {[%clk 0:01:35.2]} 22. Qh4
{[%clk 0:01:30]} 22... Qxd4 {[%clk 0:01:27.9]} 23. Kh1 {[%clk 0:01:15.3]} 23...
Qe4+ {[%clk 0:01:12.4]} 24. Rf3 {[%clk 0:01:09.6]} 24... Rc2 {[%clk 0:01:00.8]}
25. Qe1 {[%clk 0:00:57.9]} 25... Nxg4 {[%clk 0:00:55.1]} 26. Bd1 {[%clk
0:00:24]} 26... Rxh2+ {[%clk 0:00:43.3]} 27. Kg1 {[%clk 0:00:22.1]} 27... Qd4+
{[%clk 0:00:42.5]} 28. Kf1 {[%clk 0:00:20]} 28... Rh1+ {[%clk 0:00:38.4]} 29.
Ke2 {[%clk 0:00:18.9]} 29... Qe4+ {[%clk 0:00:27.1]} 0-1

[Event "Betsys MČR v online bleskovém šachu 2021"]
[Site "Chess.com"]
[Date "2021.04.17"]
[Round "12"]
[White "Gicko13"]
[Black "Varinius"]
[Result "1-0"]
[WhiteElo "2164"]
[BlackElo "2397"]
[TimeControl "180+1"]
[EndTime "11:00:28 PDT"]
[Termination "Uživatel Gicko13 zvítězil po vzdání soupeře"]

1. e4 {[%clk 0:03:00.9]} 1... a5 {[%clk 0:02:57.7]} 2. d4 {[%clk 0:02:59.6]}
2... b6 {[%clk 0:02:57]} 3. Bd3 {[%clk 0:02:58.1]} 3... Bb7 {[%clk 0:02:56.5]}
4. Nf3 {[%clk 0:02:56.9]} 4... e6 {[%clk 0:02:56.6]} 5. O-O {[%clk 0:02:56.4]}
5... g6 {[%clk 0:02:55.7]} 6. Qe2 {[%clk 0:02:55.4]} 6... Bg7 {[%clk 0:02:55.7]}
7. Nbd2 {[%clk 0:02:48.9]} 7... Ne7 {[%clk 0:02:55.5]} 8. e5 {[%clk 0:02:45.1]}
8... d6 {[%clk 0:02:49.9]} 9. Ne4 {[%clk 0:02:41.3]} 9... Nbc6 {[%clk 0:02:11]}
10. Bg5 {[%clk 0:02:20.1]} 10... h6 {[%clk 0:01:29.3]} 11. Bf6 {[%clk
0:02:00.5]} 11... Kf8 {[%clk 0:01:28.9]} 12. Rad1 {[%clk 0:01:50.3]} 12... Qd7
{[%clk 0:01:27.2]} 13. Bb5 {[%clk 0:01:38.4]} 13... Nd5 {[%clk 0:01:23]} 14. c4
{[%clk 0:01:28.3]} 14... Nf4 {[%clk 0:00:20.9]} 15. Qe3 {[%clk 0:01:22.5]} 15...
g5 {[%clk 0:00:17.7]} 16. d5 {[%clk 0:01:09.9]} 16... exd5 {[%clk 0:00:18.6]}
17. cxd5 {[%clk 0:01:10]} 17... Qg4 {[%clk 0:00:19.2]} 18. Ng3 {[%clk
0:00:49.4]} 18... Nxe5 {[%clk 0:00:18.5]} 19. Nxe5 {[%clk 0:00:46.4]} 19... dxe5
{[%clk 0:00:17.8]} 20. f3 {[%clk 0:00:41.3]} 20... Qc8 {[%clk 0:00:11.8]} 21.
Bxe5 {[%clk 0:00:40.4]} 21... f6 {[%clk 0:00:10.7]} 22. Bxf4 {[%clk 0:00:36.5]}
22... gxf4 {[%clk 0:00:11.6]} 23. Qxf4 {[%clk 0:00:37]} 23... h5 {[%clk
0:00:10.5]} 24. Rfe1 {[%clk 0:00:34.3]} 24... Kf7 {[%clk 0:00:10.3]} 25. Nf5
{[%clk 0:00:28.1]} 25... Kg6 {[%clk 0:00:05.5]} 26. Ne7+ {[%clk 0:00:27.1]} 1-0

[Event "Betsys MČR v online bleskovém šachu 2021"]
[Site "Chess.com"]
[Date "2021.04.17"]
[Round "12"]
[White "Kijonker"]
[Black "svTomas"]
[Result "0-1"]
[WhiteElo "1445"]
[BlackElo "1441"]
[TimeControl "180+1"]
[EndTime "11:00:28 PDT"]
[Termination "Uživatel svTomas zvítězil na čas"]

1. e4 {[%clk 0:03:00.9]} 1... e5 {[%clk 0:02:59.7]} 2. Nf3 {[%clk 0:03:00.2]}
2... Nf6 {[%clk 0:02:59.6]} 3. Nc3 {[%clk 0:02:57.6]} 3... Bc5 {[%clk
0:02:56.6]} 4. Bc4 {[%clk 0:02:50.3]} 4... d5 {[%clk 0:02:52.3]} 5. exd5 {[%clk
0:02:48.4]} 5... e4 {[%clk 0:02:52.1]} 6. Bb5+ {[%clk 0:02:42.9]} 6... c6 {[%clk
0:02:50.7]} 7. dxc6 {[%clk 0:02:42.4]} 7... bxc6 {[%clk 0:02:50.5]} 8. Ne5
{[%clk 0:02:40.7]} 8... cxb5 {[%clk 0:02:48.1]} 9. O-O {[%clk 0:02:38.9]} 9...
O-O {[%clk 0:02:41.6]} 10. h3 {[%clk 0:02:31.2]} 10... Bd4 {[%clk 0:02:34.7]}
11. Ng4 {[%clk 0:02:10.6]} 11... Nxg4 {[%clk 0:02:32.9]} 12. hxg4 {[%clk
0:02:10.4]} 12... Qh4 {[%clk 0:02:32.1]} 13. Nxe4 {[%clk 0:01:53.3]} 13... Bb7
{[%clk 0:02:31.5]} 14. d3 {[%clk 0:01:44.5]} 14... f5 {[%clk 0:02:19.6]} 15. Bg5
{[%clk 0:01:31.1]} 15... Qxg4 {[%clk 0:02:06.5]} 16. Qxg4 {[%clk 0:01:30.3]}
16... fxg4 {[%clk 0:02:04.1]} 17. Nd6 {[%clk 0:01:24.6]} 17... Bc6 {[%clk
0:01:52.9]} 18. c3 {[%clk 0:01:18]} 18... Bf6 {[%clk 0:01:49.8]} 19. Bd2 {[%clk
0:01:10.4]} 19... Nd7 {[%clk 0:01:48.3]} 20. Nf5 {[%clk 0:00:56]} 20... Ne5
{[%clk 0:01:39.9]} 21. d4 {[%clk 0:00:50.9]} 21... Nc4 {[%clk 0:01:38.4]} 22.
Bc1 {[%clk 0:00:17.5]} 22... Be4 {[%clk 0:01:35.2]} 23. Ng3 {[%clk 0:00:14.6]}
23... Bb7 {[%clk 0:01:29.9]} 24. b3 {[%clk 0:00:14.4]} 24... Nd6 {[%clk
0:01:29.3]} 25. Bf4 {[%clk 0:00:12.2]} 25... Ne4 {[%clk 0:01:26.9]} 26. Nf5
{[%clk 0:00:09.5]} 26... Bg5 {[%clk 0:00:58]} 27. Bxg5 {[%clk 0:00:04.6]} 27...
Rxf5 {[%clk 0:00:52.4]} 28. Be3 {[%clk 0:00:03.4]} 28... Raf8 {[%clk 0:00:48.9]}
29. Rac1 {[%clk 0:00:02.7]} 29... Rh5 {[%clk 0:00:41.8]} 0-1

[Event "Betsys MČR v online bleskovém šachu 2021"]
[Site "Chess.com"]
[Date "2021.04.17"]
[Round "12"]
[White "jarda1955"]
[Black "mravecuk"]
[Result "0-1"]
[WhiteElo "2020"]
[BlackElo "2240"]
[TimeControl "180+1"]
[EndTime "11:00:30 PDT"]
[Termination "Uživatel mravecuk zvítězil po vzdání soupeře"]

1. d4 {[%clk 0:03:00.9]} 1... d5 {[%clk 0:02:54.7]} 2. c4 {[%clk 0:02:50.2]}
2... e6 {[%clk 0:02:54.3]} 3. Nc3 {[%clk 0:02:49.4]} 3... Nf6 {[%clk 0:02:53.6]}
4. Bg5 {[%clk 0:02:49.1]} 4... c6 {[%clk 0:02:52.9]} 5. e3 {[%clk 0:02:48.5]}
5... Nbd7 {[%clk 0:02:51]} 6. Nf3 {[%clk 0:02:46.6]} 6... Qa5 {[%clk 0:02:50.6]}
7. cxd5 {[%clk 0:02:40.5]} 7... Nxd5 {[%clk 0:02:49.5]} 8. Qd2 {[%clk
0:02:40.4]} 8... Nxc3 {[%clk 0:02:25.3]} 9. bxc3 {[%clk 0:02:38.9]} 9... b6
{[%clk 0:02:25.2]} 10. Bd3 {[%clk 0:02:28.6]} 10... Ba6 {[%clk 0:02:24.4]} 11.
O-O {[%clk 0:02:27.7]} 11... Bxd3 {[%clk 0:02:23.8]} 12. Qxd3 {[%clk 0:02:27.2]}
12... f6 {[%clk 0:02:18.3]} 13. Bf4 {[%clk 0:02:22.1]} 13... Kf7 {[%clk
0:02:17.6]} 14. e4 {[%clk 0:02:21.7]} 14... Ba3 {[%clk 0:02:16.6]} 15. Rab1
{[%clk 0:02:18.4]} 15... Rac8 {[%clk 0:02:14]} 16. e5 {[%clk 0:02:13.7]} 16...
Rhd8 {[%clk 0:02:08.5]} 17. exf6 {[%clk 0:02:11]} 17... Nxf6 {[%clk 0:02:06.6]}
18. Ng5+ {[%clk 0:02:07.8]} 18... Kg8 {[%clk 0:02:00.3]} 19. Be5 {[%clk
0:02:06]} 19... Qxe5 {[%clk 0:01:55.3]} 20. dxe5 {[%clk 0:02:04.6]} 20... Rxd3
{[%clk 0:01:54.3]} 21. exf6 {[%clk 0:02:04.2]} 21... gxf6 {[%clk 0:01:48.3]} 22.
Nxe6 {[%clk 0:02:03.8]} 22... Rxc3 {[%clk 0:01:39.2]} 23. Rfd1 {[%clk
0:02:00.9]} 23... Kf7 {[%clk 0:01:32]} 24. Nf4 {[%clk 0:01:50.3]} 24... Rc7
{[%clk 0:01:31.6]} 25. Rd8 {[%clk 0:01:46.6]} 25... Rc1+ {[%clk 0:01:25.3]} 26.
Rxc1 {[%clk 0:01:44.3]} 26... Bxc1 {[%clk 0:01:26.2]} 27. Nd3 {[%clk 0:01:42.5]}
27... Ba3 {[%clk 0:01:23.4]} 28. Kf1 {[%clk 0:01:41.9]} 28... c5 {[%clk
0:01:23.4]} 29. Ke2 {[%clk 0:01:39.1]} 29... c4 {[%clk 0:01:23.3]} 30. Ne1
{[%clk 0:01:38.7]} 30... Re7+ {[%clk 0:01:20.6]} 31. Kd1 {[%clk 0:01:35.4]}
31... b5 {[%clk 0:01:19.8]} 32. Nc2 {[%clk 0:01:29.7]} 32... Bc5 {[%clk
0:01:19.5]} 33. f3 {[%clk 0:01:22]} 33... Rc7 {[%clk 0:01:10.4]} 34. Rb8 {[%clk
0:01:16.4]} 34... a6 {[%clk 0:01:08.9]} 35. Ne1 {[%clk 0:00:58.5]} 35... b4
{[%clk 0:01:05.8]} 36. f4 {[%clk 0:00:56.3]} 36... a5 {[%clk 0:01:02.8]} 37. Nf3
{[%clk 0:00:52.2]} 37... a4 {[%clk 0:01:02.3]} 38. Nd2 {[%clk 0:00:50.9]} 38...
Be3 {[%clk 0:00:53.1]} 39. Ke2 {[%clk 0:00:30.6]} 39... c3 {[%clk 0:00:46.5]}
0-1

[Event "Betsys MČR v online bleskovém šachu 2021"]
[Site "Chess.com"]
[Date "2021.04.17"]
[Round "12"]
[White "KajaOl"]
[Black "JustFilip05"]
[Result "1-0"]
[WhiteElo "2259"]
[BlackElo "2115"]
[TimeControl "180+1"]
[EndTime "11:00:31 PDT"]
[Termination "Uživatel KajaOl zvítězil po vzdání soupeře"]

1. e4 {[%clk 0:03:00.9]} 1... e5 {[%clk 0:02:52.6]} 2. Nf3 {[%clk 0:03:00.5]}
2... Nc6 {[%clk 0:02:52.1]} 3. Bc4 {[%clk 0:03:00.5]} 3... Nf6 {[%clk
0:02:49.9]} 4. d3 {[%clk 0:03:00.7]} 4... h6 {[%clk 0:02:43.6]} 5. Nbd2 {[%clk
0:02:56.8]} 5... Be7 {[%clk 0:02:43.5]} 6. c3 {[%clk 0:02:53.7]} 6... d6 {[%clk
0:02:42.9]} 7. Bb3 {[%clk 0:02:49.4]} 7... Be6 {[%clk 0:02:40.8]} 8. Bc2 {[%clk
0:02:48.8]} 8... g5 {[%clk 0:02:40.5]} 9. d4 {[%clk 0:02:36.4]} 9... Bg4 {[%clk
0:02:28.2]} 10. h3 {[%clk 0:02:26.6]} 10... Bh5 {[%clk 0:02:15.4]} 11. dxe5
{[%clk 0:02:01.2]} 11... Nxe5 {[%clk 0:02:07.6]} 12. Qe2 {[%clk 0:01:51.9]}
12... Qd7 {[%clk 0:02:06.4]} 13. Nc4 {[%clk 0:01:37.6]} 13... Bxf3 {[%clk
0:01:58.8]} 14. gxf3 {[%clk 0:01:36.9]} 14... Nxc4 {[%clk 0:01:58.4]} 15. Qxc4
{[%clk 0:01:36.4]} 15... O-O-O {[%clk 0:01:56]} 16. Be3 {[%clk 0:01:33.4]} 16...
a6 {[%clk 0:01:54.7]} 17. O-O-O {[%clk 0:01:31.4]} 17... Qe6 {[%clk 0:01:48.8]}
18. Bb3 {[%clk 0:01:28.5]} 18... Qxc4 {[%clk 0:01:45.5]} 19. Bxc4 {[%clk
0:01:29.4]} 19... Rhf8 {[%clk 0:01:45.5]} 20. h4 {[%clk 0:01:23.9]} 20... Nd7
{[%clk 0:01:41.9]} 21. hxg5 {[%clk 0:01:20.2]} 21... hxg5 {[%clk 0:01:42.8]} 22.
f4 {[%clk 0:01:18.3]} 22... f5 {[%clk 0:01:33.9]} 23. exf5 {[%clk 0:01:11.9]}
23... Rxf5 {[%clk 0:01:34.8]} 24. Be6 {[%clk 0:01:10.4]} 24... Ra5 {[%clk
0:01:23.7]} 25. fxg5 {[%clk 0:00:59.7]} 25... Bxg5 {[%clk 0:01:22.9]} 26. Bxg5
{[%clk 0:00:58.3]} 26... Rxg5 {[%clk 0:01:23.8]} 27. Rh7 {[%clk 0:00:57.6]}
27... Re5 {[%clk 0:01:22.5]} 28. Bh3 {[%clk 0:00:56.1]} 28... Re4 {[%clk
0:01:12.3]} 29. Rg1 {[%clk 0:00:52.8]} 29... b5 {[%clk 0:00:19.7]} 30. Rxd7
{[%clk 0:00:44.9]} 30... Rxd7 {[%clk 0:00:17.3]} 31. Rg8+ {[%clk 0:00:44]} 31...
Kb7 {[%clk 0:00:16.3]} 32. Bxd7 {[%clk 0:00:44]} 32... Re1+ {[%clk 0:00:17]} 33.
Kd2 {[%clk 0:00:42.9]} 33... Rb1 {[%clk 0:00:17.2]} 34. Kc2 {[%clk 0:00:41.5]}
34... Re1 {[%clk 0:00:14.6]} 35. Rf8 {[%clk 0:00:38.4]} 35... Re7 {[%clk
0:00:14.8]} 36. Bg4 {[%clk 0:00:37.4]} 1-0

[Event "Betsys MČR v online bleskovém šachu 2021"]
[Site "Chess.com"]
[Date "2021.04.17"]
[Round "12"]
[White "Qb1xh8"]
[Black "milanpetras"]
[Result "0-1"]
[WhiteElo "2033"]
[BlackElo "1859"]
[TimeControl "180+1"]
[EndTime "11:00:32 PDT"]
[Termination "Uživatel milanpetras zvítězil na čas"]

1. c4 {[%clk 0:03:00.9]} 1... e5 {[%clk 0:02:55.3]} 2. Nc3 {[%clk 0:03:00.5]}
2... c5 {[%clk 0:02:52.8]} 3. e3 {[%clk 0:02:59.7]} 3... Nc6 {[%clk 0:02:53.2]}
4. Nf3 {[%clk 0:02:59.7]} 4... d6 {[%clk 0:02:52.8]} 5. d4 {[%clk 0:02:59.9]}
5... cxd4 {[%clk 0:02:37.5]} 6. exd4 {[%clk 0:03:00.8]} 6... Bg4 {[%clk
0:02:29.3]} 7. dxe5 {[%clk 0:02:34.4]} 7... dxe5 {[%clk 0:02:19.6]} 8. Qa4
{[%clk 0:02:31.9]} 8... Bxf3 {[%clk 0:02:15.2]} 9. gxf3 {[%clk 0:02:32.8]} 9...
Nf6 {[%clk 0:02:07.4]} 10. Be3 {[%clk 0:02:31.7]} 10... Be7 {[%clk 0:02:06.4]}
11. Rd1 {[%clk 0:02:31.2]} 11... Qc8 {[%clk 0:01:59]} 12. Rg1 {[%clk 0:02:23.8]}
12... O-O {[%clk 0:01:47.5]} 13. Bh6 {[%clk 0:02:21.1]} 13... Ne8 {[%clk
0:01:37.7]} 14. Nd5 {[%clk 0:02:17.4]} 14... Kh8 {[%clk 0:01:14.7]} 15. Be3
{[%clk 0:02:14.8]} 15... Bf6 {[%clk 0:01:04.6]} 16. Rg3 {[%clk 0:02:10.2]} 16...
Nd4 {[%clk 0:00:58.6]} 17. Bh3 {[%clk 0:02:07.6]} 17... Qc6 {[%clk 0:00:48.1]}
18. Qxc6 {[%clk 0:01:48.8]} 18... Nxc6 {[%clk 0:00:46.1]} 19. Bd7 {[%clk
0:00:02.6]} 19... Bd8 {[%clk 0:00:41.5]} 20. Bc5 {[%clk 0:00:02.5]} 20... Rg8
{[%clk 0:00:35.6]} 21. Kf1 {[%clk 0:00:02.7]} 21... Nf6 {[%clk 0:00:30.1]} 22.
Bxc6 {[%clk 0:00:01.3]} 22... bxc6 {[%clk 0:00:27.4]} 23. Ne7 {[%clk 0:00:01.7]}
23... Re8 {[%clk 0:00:24.7]} 24. Nxc6 {[%clk 0:00:01.4]} 24... Bb6 {[%clk
0:00:22.7]} 0-1